[Event "CZE-ch 2020"]
[Site "Pilsen"]
[Date "2020.08.29"]
[Round "7.11"]
[White "Finek, Vaclav"]
[Black "Svanda, Ondrej"]
[Result "1-0"]
[ECO "A04"]
[WhiteElo "2344"]
[BlackElo "2250"]
[Annotator "ChessBase"]
[PlyCount "83"]
[EventDate "2020.08.23"]
[EventType "swiss"]
[EventCountry "CZE"]
[SourceTitle "playchess.com"]
[Source "ChessBase"]
[SourceQuality "1"]
[TimeControl "40/5400+30:1800+30"]

1. Nf3 {[%emt 0:00:00]} g6 {[%emt 0:01:47]} 2. c4 {[%emt 0:00:08]} Bg7 {[%emt 0:01:21]} 3. d4 {[%emt 0:00:17]} d6 {[%emt 0:00:04]} 4. g3 {[%emt 0:01:07]} c5 {[%emt 0:00:10]} 5. Bg2 {[%emt 0:00:28]} cxd4 {[%emt 0:00:57]} 6. Nxd4 {[%emt 0:00:57]} Qb6 {[%emt 0:00:07]} 7. Nb3 {[%emt 0:02:21]} Qb4+ {[%emt 0:14:20]} 8. N1d2 {[%emt 0:04:50]} Nf6 {[%emt 0:06:21]} 9. O-O {[%emt 0:07:16]} O-O {[%emt 0:00:35]} 10. e4 {[%emt 0:03:17]} Nc6 {[%emt 0:01:50]} 11. Qe2 {[%emt 0:00:19]} a5 {[%emt 0:07:05]} 12. Nf3 {[%emt 0:08:58]} Be6 {[%emt 0:00:29]} 13. Nbd2 {[%emt 0:00:47]} a4 {[%emt 0:07:20]} 14. Rb1 {[%emt 0:03:03]} Rfc8 {[%emt 0:05:33]} 15. Ng5 {[%emt 0:06:56]} Bg4 {[%emt 0:01:50]} 16. Qe3 {[%emt 0:05:01]} h6 {[%emt 0:02:25]} 17. Ngf3 {[%emt 0:00:42]} Be6 {[%emt 0:02:33]} 18. b3 {[%emt 0:09:22]} a3 {[%emt 0:00:03]} 19. Rd1 {[%emt 0:02:29]} Qc5 {[%emt 0:07:47]} 20. Qe2 {[%emt 0:03:14]} Nb4 {[%emt 0:03:11]} 21. Nf1 {[%emt 0:05:40]} Nxe4 {[%emt 0:29:31]} 22. Qxe4 {[%emt 0:01:24]} Bf5 {[%emt 0:01:19]} 23. Qe1 {[%emt 0:01:31]} Bxb1 {[%emt 0:00:01]} 24. Be3 {[%emt 0:00:52]} Nc2 {[%emt 0:00:09]} 25. Bxc5 {[%emt 0:01:20]} Nxe1 {[%emt 0:00:01]} 26. Rxe1 {[%emt 0:01:32]} Bxa2 {[%emt 0:00:04]} 27. Bd4 {[%emt 0:00:43]} e5 {[%emt 0:03:32]} 28. Ba1 {[%emt 0:01:20]} Rab8 {[%emt 0:02:44]} 29. N3d2 {[%emt 0:02:18]} b5 {[%emt 0:00:02]} 30. Bd5 {[%emt 0:01:21]} bxc4 {[%emt 0:00:34]} 31. bxc4 {[%emt 0:02:45]} e4 {[%emt 0:00:34]} 32. Bxg7 {[%emt 0:02:53]} Kxg7 {[%emt 0:00:01]} 33. Re3 {[%emt 0:00:31]} f5 {[%emt 0:01:20]} 34. Rxa3 {[%emt 0:00:22]} Bb1 {[%emt 0:00:01]} 35. Ra7+ {[%emt 0:04:30]} Kf6 {[%emt 0:00:12]} 36. f4 {[%emt 0:01:26]} exf3 {[%emt 0:01:01]} 37. Rf7+ {[%emt 0:00:23]} Kg5 {[%emt 0:00:04]} 38. h4+ {[%emt 0:02:16]} Kg4 {[%emt 0:00:10]} 39. Bxf3+ {[%emt 0:00:48]} Kh3 {[%emt 0:00:02]} 40. Bg2+ {[%emt 0:08:50]} Kg4 {[%emt 0:00:01]} 41. Bf3+ {[%emt 0:30:07]} Kh3 {[%emt 0:30:03]} 42. Rf6 {[%emt 0:02:39]} 1-0

[Event "CZE-ch 2020"]
[Site "Pilsen"]
[Date "2020.08.29"]
[Round "7.12"]
[White "Cerveny, Petr"]
[Black "Nytra, Ondrej"]
[Result "1-0"]
[ECO "C88"]
[WhiteElo "2340"]
[BlackElo "1925"]
[Annotator "ChessBase"]
[PlyCount "93"]
[EventDate "2020.08.23"]
[EventType "swiss"]
[EventCountry "CZE"]
[SourceTitle "playchess.com"]
[Source "ChessBase"]
[SourceQuality "1"]
[TimeControl "40/5400+30:1800+30"]

1. e4 {[%emt 0:00:00]} e5 {[%emt 0:00:00]} 2. Nf3 {[%emt 0:00:00]} Nc6 {[%emt 0:00:00]} 3. Bb5 {[%emt 0:00:00]} a6 {[%emt 0:00:00]} 4. Ba4 {[%emt 0:00:00]} Nf6 {[%emt 0:00:00]} 5. O-O {[%emt 0:00:00]} Be7 {[%emt 0:01:03]} 6. Re1 {[%emt 0:00:43]} b5 {[%emt 0:00:12]} 7. Bb3 {[%emt 0:00:03]} d6 {[%emt 0:00:42]} 8. a4 {[%emt 0:00:21]} Bg4 {[%emt 0:01:23]} 9. c3 {[%emt 0:00:07]} O-O {[%emt 0:00:31]} 10. h3 {[%emt 0:00:27]} Bh5 {[%emt 0:00:24]} 11. d3 {[%emt 0:00:16]} Qd7 {[%emt 0:04:28]} 12. Nbd2 {[%emt 0:00:26]} b4 {[%emt 0:00:39]} 13. a5 {[%emt 0:01:06]} Nd8 {[%emt 0:05:30]} 14. Nf1 {[%emt 0:04:40]} bxc3 {[%emt 0:17:00]} 15. bxc3 {[%emt 0:00:07]} Ne6 {[%emt 0:00:02]} 16. Ng3 {[%emt 0:02:51]} Bg6 {[%emt 0:00:31]} 17. Nh4 {[%emt 0:15:38]} c6 {[%emt 0:07:21]} 18. Nhf5 {[%emt 0:07:22]} Bd8 {[%emt 0:00:34]} 19. Qf3 {[%emt 0:04:43]} Nc5 {[%emt 0:05:05]} 20. Bc2 {[%emt 0:00:14]} Re8 {[%emt 0:07:41]} 21. Be3 {[%emt 0:05:26]} Rb8 {[%emt 0:01:16]} 22. Bxc5 {[%emt 0:07:06]} dxc5 {[%emt 0:00:07]} 23. Ne3 {[%emt 0:00:12]} Rb2 {[%emt 0:01:24]} 24. Qe2 {[%emt 0:04:22]} h5 {[%emt 0:07:40]} 25. Nc4 {[%emt 0:00:06]} Rb7 {[%emt 0:00:10]} 26. Qe3 {[%emt 0:00:37]} h4 {[%emt 0:02:44]} 27. Nf1 {[%emt 0:00:41]} Qe7 {[%emt 0:08:52]} 28. Ba4 {[%emt 0:01:29]} Rc7 {[%emt 0:02:19]} 29. Nfd2 {[%emt 0:02:37]} Nh5 {[%emt 0:00:35]} 30. Nf3 {[%emt 0:05:05]} Qf6 {[%emt 0:03:04]} 31. Qxc5 {[%emt 0:11:22]} Nf4 {[%emt 0:00:11]} 32. Ncxe5 {[%emt 0:08:12]} Bh5 {[%emt 0:01:16]} 33. Re3 {[%emt 0:03:11]} Be7 {[%emt 0:17:16]} 34. Qc4 {[%emt 0:00:43]} Bd6 {[%emt 0:06:19]} 35. d4 {[%emt 0:06:31]} Bxe5 {[%emt 0:00:37]} 36. Nxe5 {[%emt 0:02:14]} Qg5 {[%emt 0:00:33]} 37. Qf1 {[%emt 0:01:35]} Rxe5 {[%emt 0:00:28]} 38. dxe5 {[%emt 0:00:25]} Rb7 {[%emt 0:00:01]} 39. Bd1 {[%emt 0:00:49]} Rb2 {[%emt 0:01:00]} 40. Bxh5 {[%emt 0:00:57]} Qxh5 {[%emt 0:00:01]} 41. Qxa6 {[%emt 0:35:19]} Kh7 {[%emt 0:02:32]} 42. Qc8 {[%emt 0:00:00]} g6 {[%emt 0:00:56]} 43. Qg4 {[%emt 0:00:00]} Qxe5 {[%emt 0:00:06]} 44. a6 {[%emt 0:00:00]} Ne6 {[%emt 0:00:35]} 45. a7 {[%emt 0:00:00]} Nc7 {[%emt 0:00:02]} 46. Qxh4+ {[%emt 0:00:00]} Kg7 {[%emt 0:00:09]} 47. Qg3 {[%emt 0:00:00]} 1-0

[Event "CZE-ch 2020"]
[Site "Pilsen"]
[Date "2020.08.29"]
[Round "7.14"]
[White "Nemec, Pavel"]
[Black "Stalmach, Richard"]
[Result "1-0"]
[ECO "B45"]
[WhiteElo "2243"]
[BlackElo "2273"]
[Annotator "NA"]
[PlyCount "73"]
[EventDate "2020.08.23"]
[EventType "swiss"]
[EventCountry "CZE"]
[SourceTitle "playchess.com"]
[Source "ChessBase"]
[SourceQuality "1"]
[TimeControl "40/5400+30:1800+30"]

1. e4 {[%emt 0:00:00]} c5 {[%emt 0:00:00]} 2. Nf3 {[%emt 0:00:00]} e6 {[%emt 0:00:00]} 3. d4 {[%emt 0:00:05]} cxd4 {[%emt 0:00:00]} 4. Nxd4 {[%emt 0:00:10]} Nc6 {[%emt 0:00:01]} 5. Nc3 {[%emt 0:00:08]} Nf6 {[%emt 0:00:06]} 6. Nxc6 {[%emt 0:00:35]} bxc6 {[%emt 0:00:06]} 7. e5 {[%emt 0:00:21]} Nd5 {[%emt 0:00:08]} 8. Ne4 {[%emt 0:00:15]} Qc7 {[%emt 0:00:36]} 9. f4 {[%emt 0:00:31]} f5 {[%emt 0:00:22]} 10. exf6 {[%emt 0:00:35]} gxf6 {[%emt 0:00:06]} 11. Bd3 {[%emt 0:00:23]} Qb6 {[%emt 0:00:16]} 12. a3 {[%emt 0:00:43]} Be7 {[%emt 0:01:21]} 13. Qh5+ {[%emt 0:00:36]} Kd8 {[%emt 0:00:10]} 14. Qe2 {[%emt 0:05:19]} Rg8 {[%emt 0:09:41]} 15. c4 {[%emt 0:01:09]} f5 {[%emt 0:00:15]} 16. Ng5 {[%emt 0:07:25]} Nf6 $1 {[%emt 0:00:22]} 17. Bd2 {[%emt 0:07:08]} c5 {[%emt 0:23:11] [#]} 18. O-O-O $1 {[%emt 0:03:12]} Bb7 $16 {[%emt 0:05:53]} 19. Rhe1 {[%emt 0:24:31]} h6 {[%emt 0:03:20]} 20. Bxf5 {[%emt 0:02:52]} hxg5 {[%emt 0:03:44]} 21. fxg5 {[%emt 0:00:18]} Rb8 {[%emt 0:12:57]} 22. gxf6 {[%emt 0:19:01]} Bxf6 {[%emt 0:05:42]} 23. Ba5 {[%emt 0:00:52]} Qxa5 {[%emt 0:09:26]} 24. Rxd7+ {[%emt 0:00:18]} Kc8 {[%emt 0:00:02]} 25. Qxe6 {[%emt 0:00:14]} Bxb2+ {[%emt 0:04:35]} 26. Kb1 {[%emt 0:00:01]} Be4+ {[%emt 0:03:09]} 27. Qxe4 {[%emt 0:01:30]} Qxe1+ {[%emt 0:00:25]} 28. Qxe1 {[%emt 0:00:08]} Bc3+ {[%emt 0:00:21]} 29. Rb7+ {[%emt 0:00:07]} Kxb7 {[%emt 0:00:03]} 30. Qxc3 {[%emt 0:00:21]} Rxg2 {[%emt 0:00:03]} 31. Kc1 {[%emt 0:06:59]} Ka6 {[%emt 0:05:40]} 32. Qf6+ {[%emt 0:05:06]} Ka5 {[%emt 0:00:33]} 33. Qd6 {[%emt 0:00:33]} Rbb2 {[%emt 0:01:10]} 34. Qxc5+ {[%emt 0:00:15]} Ka4 {[%emt 0:00:02]} 35. Qe3 {[%emt 0:02:54]} a5 {[%emt 0:02:10]} 36. Bd7+ {[%emt 0:00:10]} Rb5 {[%emt 0:00:02]} 37. Bxb5# {[%emt 0:00:12]} 1-0

[Event "CZE-ch 2020"]
[Site "Pilsen"]
[Date "2020.08.29"]
[Round "7.15"]
[White "Houska, Jiri"]
[Black "Serrano, Salvador Eduardo"]
[Result "1/2-1/2"]
[ECO "C42"]
[WhiteElo "2202"]
[BlackElo "2299"]
[Annotator "ChessBase"]
[PlyCount "82"]
[EventDate "2020.08.23"]
[EventType "swiss"]
[EventCountry "CZE"]
[SourceTitle "playchess.com"]
[Source "ChessBase"]
[SourceQuality "1"]
[TimeControl "40/5400+30:1800+30"]

1. e4 {[%emt 0:00:00]} e5 {[%emt 0:01:31]} 2. Nf3 {[%emt 0:00:00]} Nf6 {[%emt 0:00:06]} 3. Nxe5 {[%emt 0:00:00]} d6 {[%emt 0:00:05]} 4. Nf3 {[%emt 0:00:00]} Nxe4 {[%emt 0:00:05]} 5. d4 {[%emt 0:00:27]} d5 {[%emt 0:00:08]} 6. c4 {[%emt 0:00:42]} Bb4+ {[%emt 0:02:45]} 7. Nbd2 {[%emt 0:03:14]} O-O {[%emt 0:01:31]} 8. cxd5 {[%emt 0:10:35]} Qxd5 {[%emt 0:09:49]} 9. Be2 {[%emt 0:00:10]} Nc6 {[%emt 0:01:55]} 10. O-O {[%emt 0:00:17]} Bxd2 {[%emt 0:01:13]} 11. Bxd2 {[%emt 0:00:40]} Nxd4 {[%emt 0:07:47]} 12. Nxd4 {[%emt 0:04:42]} Qxd4 {[%emt 0:00:11]} 13. Bf4 {[%emt 0:00:45]} Qxb2 {[%emt 0:05:24]} 14. Bf3 {[%emt 0:00:33]} Nd6 {[%emt 0:06:18]} 15. Bxd6 {[%emt 0:05:27]} cxd6 {[%emt 0:00:13]} 16. Qxd6 {[%emt 0:00:10]} Be6 {[%emt 0:05:43]} 17. Rfb1 {[%emt 0:02:15]} Qf6 {[%emt 0:01:06]} 18. Bxb7 {[%emt 0:01:25]} Rab8 {[%emt 0:01:57]} 19. Qa6 {[%emt 0:22:15]} Qg6 {[%emt 0:08:09]} 20. Re1 {[%emt 0:08:06]} Qg5 {[%emt 0:03:51]} 21. Bf3 {[%emt 0:02:43]} Qc5 {[%emt 0:00:59]} 22. Rec1 {[%emt 0:05:30]} Qd4 {[%emt 0:03:06]} 23. Rd1 {[%emt 0:01:45]} Qb6 {[%emt 0:00:18]} 24. Qxb6 {[%emt 0:01:13]} Rxb6 {[%emt 0:00:07]} 25. Bd5 {[%emt 0:15:23]} Rb2 {[%emt 0:04:27]} 26. h3 {[%emt 0:04:04]} h6 {[%emt 0:01:42]} 27. Bb3 {[%emt 0:02:39]} a5 {[%emt 0:02:17]} 28. Rd4 {[%emt 0:06:42]} Ra8 {[%emt 0:03:35]} 29. Bxe6 {[%emt 0:00:36]} fxe6 {[%emt 0:00:04]} 30. Ra4 {[%emt 0:00:06]} Rf8 {[%emt 0:00:20]} 31. Rf1 {[%emt 0:00:28]} Rf5 {[%emt 0:00:04]} 32. g4 {[%emt 0:01:03]} Re5 {[%emt 0:01:05]} 33. Kg2 {[%emt 0:00:34]} g5 {[%emt 0:01:40]} 34. Kg3 {[%emt 0:00:10]} Kg7 {[%emt 0:00:56]} 35. h4 {[%emt 0:00:38]} Rc2 {[%emt 0:00:56]} 36. hxg5 {[%emt 0:00:00]} hxg5 {[%emt 0:00:00]} 37. Ra3 {[%emt 0:00:53]} Kg6 {[%emt 0:00:02]} 38. f4 {[%emt 0:01:18]} gxf4+ {[%emt 0:02:46]} 39. Rxf4 {[%emt 0:00:43]} Ree2 {[%emt 0:02:34]} 40. Rxa5 {[%emt 0:00:54]} Rg2+ {[%emt 0:02:49]} 41. Kh3 {[%emt 0:05:13]} Rxa2 {[%emt 0:04:18]} 1/2-1/2

[Event "CZE-ch 2020"]
[Site "Pilsen"]
[Date "2020.08.29"]
[Round "7.16"]
[White "Klement, Lukas"]
[Black "Novotny, Martin"]
[Result "1/2-1/2"]
[ECO "D02"]
[WhiteElo "2260"]
[BlackElo "2180"]
[Annotator "ChessBase"]
[PlyCount "123"]
[EventDate "2020.08.23"]
[EventType "swiss"]
[EventCountry "CZE"]
[SourceTitle "playchess.com"]
[Source "ChessBase"]
[SourceQuality "1"]
[TimeControl "40/5400+30:1800+30"]

1. d4 {[%emt 0:00:00]} d5 {[%emt 0:05:11]} 2. Nf3 {[%emt 0:00:11]} Nf6 {[%emt 0:00:11]} 3. Bf4 {[%emt 0:00:27]} e6 {[%emt 0:03:54]} 4. e3 {[%emt 0:01:38]} Bd6 {[%emt 0:01:02]} 5. Ne5 {[%emt 0:02:46]} O-O {[%emt 0:04:25]} 6. Nd2 {[%emt 0:00:52]} c5 {[%emt 0:01:37]} 7. c3 {[%emt 0:03:49]} Qc7 {[%emt 0:02:21]} 8. Bg3 {[%emt 0:02:17]} Nc6 {[%emt 0:18:58]} 9. f4 {[%emt 0:01:37]} b6 {[%emt 0:01:37]} 10. Bd3 {[%emt 0:00:32]} Bb7 {[%emt 0:00:48]} 11. Bh4 {[%emt 0:03:16]} Ne4 {[%emt 0:11:38]} 12. Nxe4 {[%emt 0:06:42]} dxe4 {[%emt 0:00:15]} 13. Bxe4 {[%emt 0:01:45]} Nxe5 {[%emt 0:01:53]} 14. dxe5 {[%emt 0:00:36]} Be7 {[%emt 0:11:31]} 15. Bxe7 {[%emt 0:02:37]} Qxe7 {[%emt 0:00:08]} 16. Bxb7 {[%emt 0:00:22]} Qxb7 {[%emt 0:00:06]} 17. Qf3 {[%emt 0:00:38]} Qa6 {[%emt 0:02:48]} 18. Qe2 {[%emt 0:05:08]} c4 {[%emt 0:01:48]} 19. Kf2 {[%emt 0:06:44]} Rad8 {[%emt 0:01:12]} 20. Rhd1 {[%emt 0:01:02]} Rd3 {[%emt 0:01:18]} 21. Rxd3 {[%emt 0:02:10]} cxd3 {[%emt 0:00:06]} 22. Qd2 {[%emt 0:00:11]} Rd8 {[%emt 0:00:45]} 23. b3 {[%emt 0:01:33]} Qb7 {[%emt 0:02:11]} 24. c4 {[%emt 0:01:00]} Qe4 {[%emt 0:02:33]} 25. Rc1 {[%emt 0:00:58]} g5 {[%emt 0:04:59]} 26. b4 {[%emt 0:03:00]} gxf4 {[%emt 0:08:53]} 27. exf4 {[%emt 0:00:14]} Rd4 {[%emt 0:01:22]} 28. g3 {[%emt 0:12:05]} Rxc4 {[%emt 0:02:26]} 29. Rxc4 {[%emt 0:00:11]} Qxc4 {[%emt 0:00:04]} 30. Ke3 {[%emt 0:00:12]} Kg7 {[%emt 0:00:52]} 31. a3 {[%emt 0:03:09]} h5 {[%emt 0:03:23]} 32. h4 {[%emt 0:06:51]} Qd5 {[%emt 0:01:32]} 33. Qxd3 {[%emt 0:02:15]} Qg2 {[%emt 0:00:14]} 34. Kd4 {[%emt 0:00:19]} Qd5+ {[%emt 0:00:02]} 35. Kc3 {[%emt 0:00:55]} Qa2 {[%emt 0:00:04]} 36. Qa6 {[%emt 0:02:39]} Qa1+ {[%emt 0:00:51]} 37. Kd2 {[%emt 0:01:34]} Qb2+ {[%emt 0:01:51]} 38. Ke3 {[%emt 0:00:39]} Qc1+ {[%emt 0:00:17]} 39. Kf2 {[%emt 0:00:27]} Qb2+ {[%emt 0:00:28]} 40. Qe2 {[%emt 0:14:51]} Qxa3 {[%emt 0:02:19]} 41. b5 {[%emt 0:31:12]} Qc5+ {[%emt 0:04:54]} 42. Kg2 {[%emt 0:00:00]} Qd5+ {[%emt 0:02:50]} 43. Kh2 {[%emt 0:00:00]} Kh6 {[%emt 0:01:05]} 44. Qe3 {[%emt 0:00:00]} Kh7 {[%emt 0:05:42]} 45. Qe2 {[%emt 0:00:00]} Kh6 {[%emt 0:01:07]} 46. Kg1 {[%emt 0:04:01]} Qc5+ {[%emt 0:03:34]} 47. Kf1 {[%emt 0:00:08]} Qd5 {[%emt 0:00:29]} 48. Kf2 {[%emt 0:00:42]} Qc5+ {[%emt 0:02:14]} 49. Kg2 {[%emt 0:01:14]} Qd5+ {[%emt 0:00:33]} 50. Kh2 {[%emt 0:00:23]} Qd4 {[%emt 0:01:59]} 51. f5 {[%emt 0:01:23]} exf5 {[%emt 0:01:28]} 52. e6 {[%emt 0:00:20]} fxe6 {[%emt 0:00:12]} 53. Qxe6+ {[%emt 0:00:05]} Kg7 {[%emt 0:00:39]} 54. Qe7+ {[%emt 0:00:16]} Kg6 {[%emt 0:02:26]} 55. Qg5+ {[%emt 0:00:08]} Kf7 {[%emt 0:00:18]} 56. Qxf5+ {[%emt 0:00:57]} Ke7 {[%emt 0:00:52]} 57. Qg5+ {[%emt 0:01:05]} Ke6 {[%emt 0:00:56]} 58. Qxh5 {[%emt 0:01:26]} Qf2+ {[%emt 0:00:37]} 59. Kh3 {[%emt 0:00:13]} Qf1+ {[%emt 0:00:11]} 60. Kh2 {[%emt 0:03:11]} Qf2+ {[%emt 0:00:04]} 61. Kh1 {[%emt 0:00:09]} Qf1+ {[%emt 0:00:29]} 62. Kh2 {[%emt 0:00:04]} 1/2-1/2

[Event "CZE-ch 2020"]
[Site "Pilsen"]
[Date "2020.08.29"]
[Round "7.18"]
[White "Pychova, Nela"]
[Black "Freisler, Pavel"]
[Result "1/2-1/2"]
[ECO "A05"]
[WhiteElo "2159"]
[BlackElo "2249"]
[Annotator "ChessBase"]
[PlyCount "110"]
[EventDate "2020.08.23"]
[EventType "swiss"]
[EventCountry "CZE"]
[SourceTitle "playchess.com"]
[Source "ChessBase"]
[SourceQuality "1"]
[TimeControl "40/5400+30:1800+30"]

1. Nf3 {[%emt 0:00:00]} Nf6 {[%emt 0:00:00]} 2. g3 {[%emt 0:00:27]} d5 {[%emt 0:00:56]} 3. Bg2 {[%emt 0:00:29]} c5 {[%emt 0:06:47]} 4. O-O {[%emt 0:02:04]} Nc6 {[%emt 0:00:56]} 5. d3 {[%emt 0:00:52]} g6 {[%emt 0:01:33]} 6. Nbd2 {[%emt 0:00:11]} Bg7 {[%emt 0:00:08]} 7. e4 {[%emt 0:01:39]} O-O {[%emt 0:00:50]} 8. Re1 {[%emt 0:04:08]} e5 {[%emt 0:08:23]} 9. exd5 {[%emt 0:05:32]} Nxd5 {[%emt 0:00:08]} 10. Nc4 {[%emt 0:00:08]} f6 {[%emt 0:00:17]} 11. a4 {[%emt 0:01:54]} Be6 {[%emt 0:01:08]} 12. Bd2 {[%emt 0:09:31]} Qd7 {[%emt 0:11:07]} 13. Qc1 {[%emt 0:02:33]} Ndb4 {[%emt 0:05:37]} 14. Bxb4 {[%emt 0:18:40]} Nxb4 {[%emt 0:01:58]} 15. Re2 {[%emt 0:01:59]} Rad8 {[%emt 0:05:52]} 16. Qe3 {[%emt 0:03:07]} b6 {[%emt 0:00:32]} 17. Ne1 {[%emt 0:06:02]} Rfe8 {[%emt 0:05:22]} 18. Qc1 {[%emt 0:16:29]} h5 {[%emt 0:09:32]} 19. h4 {[%emt 0:02:45]} Kh7 {[%emt 0:00:06]} 20. Qb1 {[%emt 0:01:46]} Bd5 {[%emt 0:08:18]} 21. Ne3 {[%emt 0:04:30]} Bxg2 {[%emt 0:01:21]} 22. N3xg2 {[%emt 0:00:24]} Qc6 {[%emt 0:02:32]} 23. c3 {[%emt 0:00:55]} Nd5 {[%emt 0:00:48]} 24. Qc2 {[%emt 0:01:28]} Bh6 {[%emt 0:03:31]} 25. Qb3 {[%emt 0:03:31]} a6 {[%emt 0:05:08]} 26. Qc4 {[%emt 0:00:35]} b5 {[%emt 0:00:25]} 27. axb5 {[%emt 0:00:38]} axb5 {[%emt 0:00:02]} 28. Ra7+ {[%emt 0:00:35]} Bg7 {[%emt 0:01:54]} 29. Qb3 {[%emt 0:06:45]} Ra8 {[%emt 0:02:40]} 30. Rxa8 {[%emt 0:00:09]} Rxa8 31. c4 {[%emt 0:01:13]} Nb4 {[%emt 0:03:04]} 32. Ne3 {[%emt 0:03:17]} Ra1 {[%emt 0:00:25]} 33. Nd5 {[%emt 0:00:31]} Qd7 {[%emt 0:11:23]} 34. Kg2 {[%emt 0:01:36]} Nxd5 {[%emt 0:01:36]} 35. cxd5 {[%emt 0:00:02]} Ra4 {[%emt 0:01:07]} 36. Nc2 {[%emt 0:00:48]} Bh6 {[%emt 0:00:24]} 37. Ne3 {[%emt 0:00:42]} Rd4 {[%emt 0:00:19]} 38. Nd1 {[%emt 0:00:31]} Rxd5 {[%emt 0:01:24]} 39. Nc3 {[%emt 0:00:26]} Rxd3 {[%emt 0:00:01]} 40. Ne4 {[%emt 0:00:35]} Bg7 {[%emt 0:00:42]} 41. Qc2 {[%emt 0:08:39]} c4 {[%emt 0:00:22]} 42. f3 {[%emt 0:00:21]} Qd5 {[%emt 0:02:57]} 43. Rf2 {[%emt 0:01:58]} b4 {[%emt 0:03:02]} 44. Qa4 {[%emt 0:01:27]} b3 {[%emt 0:04:56]} 45. Qa7 {[%emt 0:02:11]} Kh6 {[%emt 0:06:51]} 46. Qc7 {[%emt 0:05:59]} Rd4 {[%emt 0:00:39]} 47. Qb6 {[%emt 0:06:35]} Qd8 {[%emt 0:02:37]} 48. Qc6 {[%emt 0:01:39]} Qd7 {[%emt 0:00:52]} 49. Qb6 {[%emt 0:00:53]} Qe7 {[%emt 0:00:40]} 50. Qc6 {[%emt 0:00:29]} f5 {[%emt 0:01:15]} 51. Ng5 {[%emt 0:01:21]} Qd7 {[%emt 0:07:35]} 52. Qa8 {[%emt 0:01:01]} Rd2 {[%emt 0:03:21]} 53. Qg8 {[%emt 0:01:18]} Rxf2+ {[%emt 0:00:05]} 54. Kxf2 {[%emt 0:00:09]} Qd2+ {[%emt 0:00:15]} 55. Kf1 {[%emt 0:00:13]} Qd1+ {[%emt 0:00:09]} 1/2-1/2

[Event "CZE-ch 2020"]
[Site "Pilsen"]
[Date "2020.08.29"]
[Round "7.19"]
[White "Nemec, Jachym"]
[Black "Gloser, David"]
[Result "0-1"]
[ECO "A43"]
[WhiteElo "2150"]
[BlackElo "2248"]
[Annotator "ChessBase"]
[PlyCount "80"]
[EventDate "2020.08.23"]
[EventType "swiss"]
[EventCountry "CZE"]
[SourceTitle "playchess.com"]
[Source "ChessBase"]
[SourceQuality "1"]
[TimeControl "40/5400+30:1800+30"]

1. d4 {[%emt 0:00:00]} c5 {[%emt 0:00:00]} 2. d5 {[%emt 0:00:34]} g6 {[%emt 0:00:00]} 3. Nf3 {[%emt 0:00:51]} Bg7 {[%emt 0:01:04]} 4. e4 {[%emt 0:02:59]} d6 {[%emt 0:00:32]} 5. Bd3 {[%emt 0:05:19]} Nf6 {[%emt 0:03:57]} 6. Nc3 {[%emt 0:10:10]} O-O {[%emt 0:04:45]} 7. O-O {[%emt 0:01:07]} Na6 {[%emt 0:00:43]} 8. Nd2 {[%emt 0:01:27]} Nc7 {[%emt 0:04:03]} 9. a4 {[%emt 0:04:33]} Rb8 {[%emt 0:06:38]} 10. Nc4 {[%emt 0:00:41]} b6 {[%emt 0:06:22]} 11. Re1 {[%emt 0:19:51]} a6 {[%emt 0:13:12]} 12. Bf1 {[%emt 0:06:51]} b5 {[%emt 0:09:43]} 13. Na5 {[%emt 0:00:14]} Bd7 {[%emt 0:01:21]} 14. axb5 {[%emt 0:08:25]} axb5 {[%emt 0:02:37]} 15. Bg5 {[%emt 0:02:04]} h6 {[%emt 0:10:18]} 16. Bh4 {[%emt 0:00:38]} Ra8 {[%emt 0:04:36]} 17. e5 {[%emt 0:12:05]} dxe5 {[%emt 0:01:16]} 18. Nb7 {[%emt 0:00:17]} Qc8 {[%emt 0:01:59]} 19. Nxc5 {[%emt 0:00:29]} Bg4 {[%emt 0:01:44]} 20. f3 {[%emt 0:07:09]} Rxa1 {[%emt 0:04:26]} 21. Qxa1 {[%emt 0:00:05]} Ncxd5 {[%emt 0:03:43]} 22. Bf2 {[%emt 0:02:02]} Nxc3 {[%emt 0:03:29]} 23. bxc3 {[%emt 0:00:02]} Bd7 {[%emt 0:01:55]} 24. Qa7 {[%emt 0:01:45]} Bc6 {[%emt 0:01:59]} 25. Qa5 {[%emt 0:02:23]} Qa8 {[%emt 0:02:09]} 26. Qb4 {[%emt 0:01:11]} Nd5 {[%emt 0:01:11]} 27. Qb3 {[%emt 0:00:14]} Rb8 {[%emt 0:01:37]} 28. Nd3 {[%emt 0:00:27]} e4 {[%emt 0:01:57]} 29. Rxe4 {[%emt 0:00:50]} Bxc3 {[%emt 0:00:46]} 30. Nf4 {[%emt 0:02:47]} Bf6 {[%emt 0:01:29]} 31. Nd3 {[%emt 0:01:27]} Nc3 {[%emt 0:00:16]} 32. Rf4 {[%emt 0:00:59]} Qa1 {[%emt 0:01:18]} 33. Ne1 {[%emt 0:01:28]} Bd5 {[%emt 0:02:04]} 34. Qb4 {[%emt 0:00:17]} Qa4 {[%emt 0:00:17]} 35. Bc5 {[%emt 0:02:06]} Qxb4 {[%emt 0:01:07]} 36. Rxb4 {[%emt 0:01:25]} Rc8 {[%emt 0:01:03]} 37. Bf2 {[%emt 0:00:31]} Bc4 {[%emt 0:00:58]} 38. Nd3 {[%emt 0:00:10]} Na2 {[%emt 0:00:49]} 39. Rb1 {[%emt 0:00:08]} Nc3 {[%emt 0:00:03]} 40. Rb4 {[%emt 0:00:11]} Ra8 {[%emt 0:01:14]} 0-1

[Event "CZE-ch 2020"]
[Site "Pilsen"]
[Date "2020.08.29"]
[Round "7.20"]
[White "Smolik, Jachym"]
[Black "Novotny, Michal"]
[Result "0-1"]
[ECO "A43"]
[WhiteElo "2121"]
[BlackElo "2246"]
[Annotator "ChessBase"]
[PlyCount "81"]
[EventDate "2020.08.23"]
[EventType "swiss"]
[EventCountry "CZE"]
[SourceTitle "playchess.com"]
[Source "ChessBase"]
[SourceQuality "1"]
[TimeControl "40/5400+30:1800+30"]

1. d4 Nf6 {[%emt 0:01:47]} 2. Nf3 {[%emt 0:03:00]} c5 {[%emt 0:00:20]} 3. d5 {[%emt 0:00:03]} b5 {[%emt 0:00:03]} 4. Bg5 {[%emt 0:00:07]} Bb7 {[%emt 0:00:01]} 5. Bxf6 {[%emt 0:01:02]} exf6 {[%emt 0:00:32]} 6. e3 {[%emt 0:05:28]} c4 {[%emt 0:01:10]} 7. Be2 {[%emt 0:04:10]} Bc5 {[%emt 0:00:02]} 8. O-O {[%emt 0:01:42]} O-O {[%emt 0:00:08]} 9. e4 {[%emt 0:17:04]} Re8 {[%emt 0:05:18]} 10. Nc3 {[%emt 0:07:10]} a6 {[%emt 0:02:13]} 11. Nd4 {[%emt 0:06:32]} Qb6 {[%emt 0:05:29]} 12. Nf5 {[%emt 0:00:04]} g6 {[%emt 0:00:09]} 13. Ng3 {[%emt 0:00:03]} Bf8 {[%emt 0:01:35]} 14. a4 {[%emt 0:02:42]} d6 {[%emt 0:03:25]} 15. axb5 {[%emt 0:03:45]} axb5 {[%emt 0:00:04]} 16. Rxa8 {[%emt 0:00:02]} Bxa8 {[%emt 0:00:06]} 17. Qd2 {[%emt 0:07:37]} Nd7 {[%emt 0:00:31]} 18. Qf4 {[%emt 0:07:37]} Bg7 {[%emt 0:03:00]} 19. Nd1 {[%emt 0:05:09]} f5 {[%emt 0:09:02]} 20. exf5 {[%emt 0:04:54]} Bxd5 {[%emt 0:01:03]} 21. Qd2 {[%emt 0:04:34]} Qc5 {[%emt 0:05:12]} 22. c3 {[%emt 0:04:35]} Bc6 {[%emt 0:01:37]} 23. Kh1 {[%emt 0:01:11]} d5 {[%emt 0:02:12]} 24. f3 {[%emt 0:09:21]} d4 {[%emt 0:03:04]} 25. Ne4 {[%emt 0:02:13]} Bxe4 {[%emt 0:02:20]} 26. fxe4 {[%emt 0:00:01]} Rxe4 {[%emt 0:00:52]} 27. fxg6 {[%emt 0:00:30]} hxg6 {[%emt 0:00:03]} 28. Bf3 {[%emt 0:00:31]} Re7 {[%emt 0:00:57]} 29. Nf2 {[%emt 0:00:28]} Ne5 {[%emt 0:19:30]} 30. Ne4 {[%emt 0:00:51]} Nxf3 {[%emt 0:00:25]} 31. gxf3 {[%emt 0:00:28]} Qf5 {[%emt 0:02:22]} 32. Rf2 {[%emt 0:01:36]} d3 {[%emt 0:00:38]} 33. Qe3 {[%emt 0:01:01]} Qe5 {[%emt 0:06:14]} 34. Qb6 {[%emt 0:00:51]} f5 {[%emt 0:00:44]} 35. Ng5 {[%emt 0:00:34]} Qe3 {[%emt 0:06:59]} 36. Qxg6 {[%emt 0:00:31]} Qf4 {[%emt 0:05:29]} 37. Kg2 {[%emt 0:00:25]} d2 {[%emt 0:00:18]} 38. Qh7+ {[%emt 0:00:34]} Kf8 {[%emt 0:00:01]} 39. Nh3 {[%emt 0:00:31]} Qd6 {[%emt 0:03:34]} 40. Qxf5+ {[%emt 0:00:10]} Kg8 {[%emt 0:00:18]} 41. Rxd2 {[%emt 0:03:16]} 0-1